bitfinex/quotes_SOLUSD_20250602
["timestamp","ask_amount","ask_price","bid_price","bid_amount"]
[1748883407897,23.3276262,153.25,153.2,49.3276262]
[1748883408279,23.3276262,153.24,153.2,49.3276262]
[1748883409691,160.63384859,153.31,153.2,49.3276262]
[1748883409692,6.66556947,153.3,153.21,22.84446183]
[1748883409883,0.14216157,153.3,153.21,22.84446183]
[1748883410082,23.3276262,153.25,153.21,22.84446183]
[1748883410882,23.3276262,153.24,153.21,22.84446183]
[1748883412107,23.3276262,153.23,153.21,6.52698909]
[1748883414212,29.85176015,153.28,153.21,6.52698909]
[1748883414401,23.3276262,153.25,153.21,22.84446183]
[1748883414914,23.3276262,153.24,153.21,22.84446183]
[1748883415995,23.3276262,153.23,153.21,6.52698909]
[1748883417221,29.85193949,153.28,153.21,6.52698909]
[1748883417222,23.3276262,153.22,153.21,6.52698909]
[1748883417717,23.3276262,153.23,153.21,6.52698909]
[1748883418612,29.85164948,153.28,153.21,6.52698909]
[1748883418819,23.3276262,153.23,153.21,6.52698909]
[1748883419616,23.3276262,153.24,153.21,22.84446183]
[1748883420624,3.73570797,153.27,153.21,22.84446183]
[1748883420798,23.3276262,153.26,153.21,46.17208803]
[1748883421192,23.3276262,153.27,153.22,23.3276262]
[1748883421408,23.3276262,153.27,153.23,22.84148011]
[1748883421821,23.3276262,153.26,153.23,22.84148011]
[1748883422899,23.3276262,153.26,153.23,16.31534294]
[1748883423726,23.3276262,153.3,153.23,39.64296914]
[1748883424706,3.7380514,153.34,153.23,78.7997922]
[1748883424904,23.3276262,153.3,153.23,78.7997922]
[1748883425403,3.7380514,153.34,153.23,78.7997922]
[1748883425404,23.3276262,153.29,153.23,55.472166]
[1748883425705,39.49163286,153.35,153.23,78.7997922]
[1748883425706,3.7380514,153.32,153.23,78.7997922]
[1748883426013,23.3276262,153.3,153.23,78.7997922]
[1748883426621,3.73732675,153.34,153.26,6.2299]
[1748883426826,23.3276262,153.33,153.26,6.2299]
[1748883427201,23.3276262,153.34,153.26,32.2299]
[1748883427399,23.3276262,153.34,153.27,18.64964886]
[1748883427701,24.2174241,153.35,153.27,18.64964886]
[1748883428520,0.8897979,153.35,153.3,26.0]
[1748883428723,0.8897979,153.35,153.31,22.82956102]
[1748883428897,24.2174241,153.35,153.31,22.82956102]
[1748883430495,0.8897979,153.35,153.33,23.3276262]
[1748883430718,0.8897979,153.35,153.34,6.52145558]
[1748883431816,0.8897979,153.35,153.31,16.3068293]
[1748883432028,0.8897979,153.35,153.32,6.52230628]
[1748883432598,0.8897979,153.35,153.28,16.30919078]
[1748883432804,23.3276262,153.29,153.26,22.83700899]
[1748883434602,23.3276262,153.28,153.26,6.52485971]
[1748883434820,23.3276262,153.29,153.26,22.83700899]
[1748883435936,23.3276262,153.27,153.26,22.83700899]
[1748883436102,23.3276262,153.28,153.26,22.83700899]
[1748883436302,23.3276262,153.28,153.26,16.31214928]
[1748883437218,23.3276262,153.29,153.26,16.31214928]
[1748883437608,11.14288338,153.35,153.26,16.31214928]
[1748883437609,0.14216157,153.34,153.26,16.31214928]
[1748883438005,23.3276262,153.3,153.26,16.31214928]
[1748883438224,11.14341383,153.35,153.26,39.63977548]
[1748883438225,23.3276262,153.31,153.26,39.63977548]
[1748883438423,23.3276262,153.3,153.26,22.83700899]
[1748883438730,23.3276262,153.31,153.26,46.16463519]
[1748883439518,23.3276262,153.3,153.26,46.16463519]
[1748883439717,23.3276262,153.3,153.26,22.83700899]
[1748883440535,11.14309241,153.35,153.26,16.31214928]
[1748883440709,23.3276262,153.3,153.26,16.31214928]
[1748883441223,4.62197545,153.35,153.26,16.31214928]
[1748883441224,23.3276262,153.31,153.26,39.63977548]
[1748883441647,4.62197545,153.35,153.28,23.3276262]
[1748883441823,23.3276262,153.33,153.28,23.3276262]
[1748883442012,23.3276262,153.32,153.27,23.3276262]
[1748883442514,23.3276262,153.32,153.28,22.83402922]
[1748883443337,23.3276262,153.32,153.28,72.16165542]
[1748883444239,23.3276262,153.32,153.28,22.83402922]
[1748883447220,23.3276262,153.29,153.28,6.52400835]
[1748883447421,23.3276262,153.29,153.25,22.83767553]
[1748883448315,23.3276262,153.28,153.25,22.83767553]
[1748883448623,23.3276262,153.29,153.25,22.83767553]
[1748883449215,10.85571654,153.35,153.25,78.79172913]
[1748883449436,23.3276262,153.32,153.28,6.52400835]
[1748883449743,23.3276262,153.31,153.28,6.52400835]
[1748883450038,23.3276262,153.31,153.28,22.83402922]
[1748883450650,4.62073104,153.35,153.28,22.83402922]
[1748883450819,23.3276262,153.34,153.29,23.3276262]
[1748883451013,0.8897979,153.35,153.29,23.3276262]
[1748883451229,0.8897979,153.35,153.3,23.3276262]
[1748883451434,24.2174241,153.35,153.3,23.3276262]
[1748883451636,0.8897979,153.35,153.31,6.52273172]
[1748883451832,24.2174241,153.35,153.31,6.52273172]
[1748883452740,0.8897979,153.35,153.32,23.3276262]
[1748883453227,0.8897979,153.35,153.31,46.15718722]
[1748883453945,24.2174241,153.35,153.31,46.15718722]
[1748883454313,0.8897979,153.35,153.31,22.82956102]
[1748883454516,23.3276262,153.34,153.31,22.82956102]
[1748883454817,0.8897979,153.35,153.3,6.5231572]
[1748883454818,23.3276262,153.32,153.3,6.5231572]
[1748883455026,0.8897979,153.35,153.3,6.5231572]
[1748883455027,23.3276262,153.31,153.3,6.5231572]
[1748883455219,23.3276262,153.34,153.3,6.5231572]
[1748883455748,24.2174241,153.35,153.3,46.15867642]
[1748883456057,0.8897979,153.35,153.31,23.3276262]
[1748883456710,0.8897979,153.35,153.32,22.82807199]
[1748883456914,0.8897979,153.35,153.32,46.15569819]
[1748883457110,0.8897979,153.35,153.33,23.3276262]
[1748883457350,0.8897979,153.35,153.32,22.82807199]
[1748883457541,0.8897979,153.35,153.33,23.3276262]
[1748883457738,0.8897979,153.35,153.32,46.15569819]
[1748883459235,23.3276262,153.33,153.28,22.83402922]
[1748883459544,23.3276262,153.29,153.28,22.83402922]
[1748883459926,23.3276262,153.3,153.28,22.83402922]
[1748883460737,2.4201979,153.35,153.28,22.83402922]
[1748883460943,23.3276262,153.32,153.28,22.83402922]
[1748883461445,38.67686404,153.31,153.28,22.83402922]
[1748883461641,38.67686404,153.3,153.28,22.83402922]
[1748883462129,38.67686404,153.31,153.28,22.83402922]
[1748883463943,38.67686404,153.3,153.28,22.83402922]
[1748883465639,3.73417528,153.33,153.28,22.83402922]
[1748883465847,38.67686404,153.31,153.28,16.31002087]
[1748883469147,38.67686404,153.32,153.28,16.31002087]
[1748883469331,0.8897979,153.35,153.28,54.98688491]
[1748883469534,39.56666194,153.35,153.3,38.67686404]
[1748883469747,42.42084746,153.34,153.29,38.67686404]
[1748883469946,42.42084746,153.34,153.3,22.83105022]
[1748883470327,38.67686404,153.33,153.3,22.83105022]
[1748883471146,0.8897979,153.35,153.3,6.5231572]
[1748883471147,38.67686404,153.31,153.3,6.5231572]
[1748883471852,38.67686404,153.31,153.28,22.83402922]
[1748883472249,0.8897979,153.35,153.28,22.83402922]
[1748883472250,38.67686404,153.3,153.28,22.83402922]
[1748883472433,38.67686404,153.31,153.28,22.83402922]
[1748883474262,38.67686404,153.31,153.28,16.31002087]
[1748883474628,38.67686404,153.3,153.28,16.31002087]
[1748883475347,38.67686404,153.31,153.28,16.31002087]
[1748883476057,0.8897979,153.35,153.28,16.31002087]
[1748883476255,38.67686404,153.32,153.28,22.83402922]
[1748883481341,23.2052754,153.32,153.28,16.31002087]
[1748883481971,23.2052754,153.33,153.28,16.31002087]
[1748883482147,23.2052754,153.32,153.28,16.31002087]
[1748883482552,23.2052754,153.33,153.28,16.31002087]
[1748883485769,23.2052754,153.32,153.28,16.31002087]
[1748883486877,23.2052754,153.31,153.28,16.31002087]
[1748883487042,5.57417245,153.35,153.28,16.31002087]
[1748883487043,23.2052754,153.3,153.28,16.31002087]
[1748883487246,23.2052754,153.31,153.28,16.31002087]
[1748883488448,26.95333859,153.32,153.28,22.83402922]
[1748883488642,23.2052754,153.31,153.28,22.83402922]
[1748883489667,23.2052754,153.31,153.28,16.31002087]
[1748883490572,26.9533272,153.32,153.28,16.31002087]
[1748883490774,23.2052754,153.32,153.28,16.31002087]
[1748883490960,22.7052754,153.33,153.28,39.51529627]
[1748883491274,26.95323549,153.32,153.28,16.31002087]
[1748883491476,23.2052754,153.32,153.28,16.31002087]
[1748883491770,23.2052754,153.32,153.28,22.83402922]
[1748883491945,23.2052754,153.33,153.28,46.03930462]
[1748883492655,3.74828515,153.32,153.28,46.03930462]
[1748883492850,23.2052754,153.33,153.28,46.03930462]
[1748883493062,3.74828515,153.32,153.28,46.03930462]
[1748883493265,23.2052754,153.33,153.28,46.03930462]
[1748883493462,3.74901313,153.32,153.28,16.31002087]
[1748883493677,23.2052754,153.33,153.28,39.51529627]
[1748883493973,3.74910553,153.32,153.28,39.51529627]
[1748883494158,23.2052754,153.33,153.28,39.51529627]
[1748883494365,26.9544022,153.32,153.28,16.31002087]
[1748883494565,23.2052754,153.32,153.28,16.31002087]
[1748883495159,5.57515433,153.35,153.28,39.51529627]
[1748883495481,23.2052754,153.33,153.28,39.51529627]
[1748883495657,3.74939575,153.32,153.28,46.03930462]
[1748883495978,23.2052754,153.33,153.28,46.03930462]
[1748883496669,23.2052754,153.32,153.28,22.83402922]
[1748883496973,23.2052754,153.31,153.28,22.83402922]
[1748883497680,23.2052754,153.31,153.3,1.0]
[1748883500674,26.95541364,153.31,153.3,1.0]
[1748883500886,23.2052754,153.31,153.3,1.0]
[1748883501075,26.955673,153.31,153.3,7.5231572]
[1748883501474,3.7503976,153.31,153.3,7.5231572]
[1748883501664,23.2052754,153.32,153.3,7.5231572]
[1748883502285,23.2052754,153.31,153.3,7.5231572]
[1748883503360,26.95701936,153.31,153.3,1.0]
[1748883504169,27.09918093,153.31,153.3,1.0]
[1748883504657,33.76407422,153.31,153.3,1.0]
[1748883504864,33.764153,153.31,153.3,1.0]
[1748883505284,0.28432314,153.3,153.24,6.5255722]
[1748883505464,23.2052754,153.25,153.2,48.84489902]
[1748883505777,23.2052754,153.24,153.2,72.05017442]
[1748883506785,23.2052754,153.28,153.2,72.05017442]
[1748883506786,0.14216157,153.28,153.2,72.05017442]
[1748883506984,23.2052754,153.24,153.2,72.05017442]
[1748883507388,23.2052754,153.24,153.2,48.84489902]
[1748883507683,23.2052754,153.24,153.2,72.05017442]
[1748883508563,23.2052754,153.23,153.2,22.84489902]
[1748883509568,23.2052754,153.21,153.19,6.52784124]
[1748883509771,1.5506,153.26,153.19,6.52784124]
[1748883509772,23.2052754,153.2,153.19,6.52784124]
[1748883510877,23.2052754,153.2,153.18,6.52826739]
[1748883514473,23.2052754,153.19,153.18,6.52826739]
[1748883515079,146.4,153.25,153.18,6.52826739]
[1748883515277,146.4,153.25,153.18,46.05421128]
[1748883515482,23.2052754,153.22,153.18,22.84893588]
[1748883516893,146.4,153.25,153.18,22.84893588]
[1748883517199,23.2052754,153.22,153.18,22.84893588]
[1748883517582,23.2052754,153.21,153.18,22.84893588]
[1748883518301,146.54216157,153.25,153.18,6.52826739]
[1748883518595,23.2052754,153.19,153.18,6.52826739]
[1748883519095,23.2052754,153.19,153.15,22.85242078]
[1748883519271,23.2052754,153.18,153.15,22.85242078]
[1748883519471,23.2052754,153.17,153.15,22.85242078]
[1748883520489,23.2052754,153.16,153.15,6.52954619]
[1748883520802,23.2052754,153.16,153.13,6.530399]
[1748883521000,23.2052754,153.16,153.1,22.86087524]
[1748883521001,23.2052754,153.14,153.1,22.86087524]
[1748883521296,23.2052754,153.13,153.1,22.86087524]
[1748883521495,6.95449269,153.19,153.1,22.86087524]
[1748883521701,23.2052754,153.13,153.1,22.86087524]
[1748883521995,6.95449269,153.19,153.1,22.86087524]
[1748883522195,23.2052754,153.12,153.1,22.86087524]
[1748883522576,23.2052754,153.11,153.1,6.53167864]
[1748883522794,23.2052754,153.12,153.1,6.53167864]
[1748883522996,23.2052754,153.12,153.07,46.07063111]
[1748883523195,23.2052754,153.11,153.07,22.86535571]
[1748883523579,23.2052754,153.11,153.07,48.86535571]
[1748883524181,23.2052754,153.12,153.07,104.73542499]
[1748883526488,23.2052754,153.11,153.07,81.53014959]
[1748883526879,23.2052754,153.1,153.07,48.86535571]
[1748883527501,23.2052754,153.11,153.07,48.86535571]
[1748883528303,23.2052754,153.12,153.07,72.07063111]
[1748883528803,23.2052754,153.11,153.07,72.07063111]
[1748883529686,23.2052754,153.11,153.07,48.86535571]
[1748883530295,146.4,153.16,153.1,23.2052754]
[1748883530485,146.4,153.16,153.11,23.2052754]
[1748883530486,23.2052754,153.16,153.11,23.2052754]
[1748883530800,23.2052754,153.15,153.11,23.2052754]
[1748883531497,23.2052754,153.15,153.1,49.2052754]
[1748883531809,23.2052754,153.14,153.11,22.85938214]
[1748883534997,23.2052754,153.12,153.11,6.53125204]
[1748883535604,23.2052754,153.13,153.11,6.53125204]
[1748883535803,23.2052754,153.13,153.11,22.85938214]
[1748883536001,23.2052754,153.14,153.11,22.85938214]
[1748883536200,23.2052754,153.15,153.11,22.85938214]
[1748883536390,23.2052754,153.14,153.11,22.85938214]
[1748883536895,23.2052754,153.13,153.11,22.85938214]
[1748883537100,23.2052754,153.14,153.11,22.85938214]
[1748883537918,23.2052754,153.13,153.11,22.85938214]
[1748883538219,23.2052754,153.13,153.11,6.53125204]
[1748883540900,0.28432314,153.17,153.11,22.85938214]
[1748883541113,23.2052754,153.13,153.11,22.85938214]
[1748883541523,0.14216157,153.17,153.11,22.85938214]
[1748883541702,147.9319,153.18,153.13,23.2052754]
[1748883542018,23.2052754,153.16,153.12,23.2052754]
[1748883542228,23.2052754,153.16,153.11,85.06841774]
[1748883542905,23.2052754,153.17,153.12,23.2052754]
[1748883543794,23.2052754,153.16,153.11,85.06841774]
[1748883544536,1.6207,153.22,153.14,26.0]
[1748883544830,23.2052754,153.2,153.15,46.05868708]
[1748883545699,23.2052754,153.16,153.15,22.85341168]
[1748883546122,23.2052754,153.17,153.15,22.85341168]
[1748883547927,23.2052754,153.18,153.15,22.85341168]
[1748883548142,23.2052754,153.16,153.12,16.3262619]
[1748883548448,23.2052754,153.13,153.12,16.3262619]
[1748883548610,23.2052754,153.13,153.12,22.85708739]
[1748883548808,23.2052754,153.14,153.12,16.3262619]
[1748883549214,23.2052754,153.15,153.12,16.3262619]
[1748883549837,23.2052754,153.14,153.12,16.3262619]
[1748883550426,23.2052754,153.13,153.11,6.53125204]
[1748883551231,23.2052754,153.14,153.11,6.53125204]
[1748883551726,23.2052754,153.13,153.11,22.85938214]
[1748883552033,23.2052754,153.14,153.11,22.85938214]
[1748883553327,23.2052754,153.13,153.11,22.85938214]
[1748883554118,23.2052754,153.12,153.11,6.53125204]
[1748883555520,23.2052754,153.12,153.08,22.86291527]
[1748883555729,23.2052754,153.1,153.08,22.86291527]
[1748883556951,23.2052754,153.09,153.08,6.532532]
[1748883557520,0.28432314,153.14,153.08,6.532532]
[1748883557728,23.2052754,153.1,153.08,22.86386202]
[1748883558350,23.2052754,153.09,153.08,22.86386202]
[1748883559164,23.2052754,153.1,153.08,22.86386202]
[1748883559345,0.28432314,153.14,153.08,22.86386202]
[1748883559551,23.2052754,153.11,153.08,22.86386202]
[1748883560446,23.2052754,153.13,153.08,46.06913742]
[1748883560649,23.2052754,153.14,153.09,23.2052754]
[1748883561232,146.4,153.15,153.1,23.2052754]
[1748883561233,169.6052754,153.15,153.1,23.2052754]
[1748883561432,6.20022991,153.2,153.11,23.2052754]
[1748883561640,23.2052754,153.15,153.1,26.0]
[1748883561830,23.2052754,153.15,153.1,49.2052754]
[1748883562449,23.2052754,153.15,153.11,22.85938214]
[1748883563034,23.2052754,153.14,153.11,22.85938214]
[1748883563548,23.2052754,153.15,153.11,22.85938214]
[1748883568656,3.74698403,153.17,153.11,22.85938214]
[1748883568828,0.28432314,153.18,153.11,22.85938214]
[1748883569032,23.2052754,153.15,153.11,22.85938214]
[1748883569233,3.74698403,153.17,153.11,46.06465754]
[1748883569443,0.28432314,153.18,153.11,46.06465754]
[1748883569444,23.2052754,153.15,153.11,22.85938214]
[1748883569646,23.2052754,153.15,153.11,46.06465754]
[1748883571261,23.2052754,153.15,153.11,22.85938214]
[1748883574255,0.28432314,153.18,153.11,22.85938214]
[1748883574256,23.2052754,153.14,153.11,22.85938214]
[1748883576556,146.68432314,153.18,153.11,22.85938214]
[1748883576757,23.2052754,153.15,153.11,22.85938214]
[1748883578244,23.2052754,153.15,153.11,6.53125204]
[1748883578448,23.2052754,153.16,153.11,29.73652744]
[1748883579349,23.2052754,153.15,153.11,6.53125204]
[1748883579946,23.2052754,153.15,153.1,49.2052754]
[1748883580140,23.2052754,153.14,153.1,26.0]
[1748883581463,23.2052754,153.13,153.1,26.0]
[1748883582869,23.2052754,153.11,153.05,12.62051392]
[1748883583082,23.2052754,153.1,153.05,35.82578932]
[1748883583241,23.2052754,153.13,153.08,23.2052754]
[1748883583673,23.2052754,153.14,153.09,49.2052754]
[1748883584551,23.2052754,153.13,153.09,26.0]
[1748883585572,23.2052754,153.12,153.09,26.0]
[1748883586271,0.28432314,153.16,153.09,26.0]
[1748883586479,23.2052754,153.13,153.09,26.0]
[1748883587589,23.2052754,153.12,153.09,26.0]
[1748883588454,4.17377285,153.16,153.09,26.0]
[1748883588666,23.2052754,153.13,153.09,26.0]
[1748883589056,23.2052754,153.11,153.09,26.0]
[1748883589397,23.2052754,153.1,153.05,6.0868]
[1748883589694,23.2052754,153.07,153.06,26.0]
[1748883590181,23.2052754,153.09,153.06,26.0]
[1748883592859,23.2052754,153.08,153.07,26.0]
[1748883593674,23.2052754,153.09,153.07,26.0]
[1748883594390,23.2052754,153.08,153.07,26.0]
[1748883595490,23.2052754,153.08,153.05,26.0]
[1748883595671,23.2052754,153.07,153.05,26.0]
[1748883596381,23.2052754,153.08,153.05,26.0]
[1748883597279,23.2052754,153.07,153.05,26.0]
[1748883597989,23.2052754,153.06,153.05,26.0]
[1748883599185,23.2052754,153.07,153.05,26.0]
[1748883600690,1.5589,153.14,153.06,23.2052754]
[1748883600891,3.74596106,153.15,153.11,23.2052754]
[1748883601064,6.31776326,153.18,153.09,26.0]
[1748883601065,23.2052754,153.12,153.09,26.0]
[1748883601264,23.2052754,153.1,153.04,26.0]
[1748883601462,24.8330754,153.12,153.03,6.53464294]
[1748883601463,23.2052754,153.06,153.05,26.0]
[1748883601683,23.2052754,153.07,153.05,26.0]
[1748883601895,28.72119703,153.12,153.05,26.0]
[1748883601896,23.2052754,153.1,153.06,26.0]
[1748883602104,23.2052754,153.09,153.06,26.0]
[1748883604185,23.2052754,153.09,153.05,6.53339957]
[1748883604186,23.2052754,153.09,153.08,26.0]
[1748883604394,23.2052754,153.11,153.08,26.0]
[1748883604969,0.14216157,153.14,153.1,26.0]
[1748883605170,3.74534231,153.15,153.08,23.2052754]
[1748883605391,23.2052754,153.12,153.08,23.2052754]
[1748883605699,23.2052754,153.12,153.07,49.2052754]
[1748883606081,23.2052754,153.13,153.08,29.7378074]
[1748883606904,5.54479147,153.16,153.08,29.7378074]
[1748883607075,6.31497789,153.2,153.12,23.2052754]
[1748883607416,23.2052754,153.13,153.07,26.0]
[1748883607587,23.2052754,153.14,153.11,26.0]
[1748883607773,23.2052754,153.15,153.11,26.0]
[1748883607969,23.2052754,153.14,153.11,26.0]
[1748883608173,23.2052754,153.13,153.11,26.0]
[1748883608396,3.7448927,153.17,153.11,26.0]
[1748883608397,0.14216157,153.16,153.11,26.0]
[1748883608607,23.2052754,153.13,153.11,26.0]
[1748883609801,0.14216157,153.16,153.11,26.0]
[1748883609989,0.14216157,153.19,153.11,49.2052754]
[1748883610190,6.31466533,153.2,153.11,26.0]
[1748883610191,23.2052754,153.15,153.11,26.0]
[1748883610599,23.2052754,153.16,153.11,49.2052754]
[1748883610897,24.8385754,153.2,153.11,49.2052754]
[1748883610898,3.7449723,153.2,153.15,49.2052754]
[1748883611096,23.2052754,153.21,153.16,23.2052754]
[1748883611808,3.88713387,153.21,153.17,26.0]
[1748883612106,23.2052754,153.18,153.17,26.0]
[1748883612307,23.2052754,153.18,153.15,26.0]
[1748883612606,23.2052754,153.2,153.15,26.0]
[1748883612607,23.2052754,153.17,153.15,26.0]
[1748883612906,23.2052754,153.18,153.15,26.0]
[1748883613681,0.14216157,153.22,153.17,26.0]
[1748883613682,3.74250017,153.22,153.17,26.0]
[1748883613882,23.2052754,153.2,153.17,26.0]
[1748883614079,4.65232079,153.23,153.17,26.0]
[1748883614284,23.2052754,153.2,153.17,26.0]
[1748883614586,23.2052754,153.2,153.15,23.2052754]
[1748883614902,23.2052754,153.19,153.15,23.2052754]
[1748883615296,23.2052754,153.19,153.14,39.00975431]
[1748883615484,23.2052754,153.19,153.14,62.21502971]
[1748883615920,23.2052754,153.18,153.14,62.21502971]
[1748883616212,23.2052754,153.17,153.16,26.0]
[1748883616506,23.2052754,153.17,153.14,32.4801]
[1748883616507,23.2052754,153.17,153.14,26.0]
[1748883616717,23.2052754,153.16,153.14,26.0]
[1748883617034,23.2052754,153.17,153.14,26.0]
[1748883617189,23.2052754,153.18,153.14,26.0]
[1748883617389,23.2052754,153.16,153.14,26.0]
[1748883617626,23.2052754,153.19,153.14,49.2052754]
[1748883617803,0.14216157,153.21,153.14,49.2052754]
[1748883618115,23.2052754,153.19,153.14,49.2052754]
[1748883618619,23.2052754,153.18,153.14,26.0]
[1748883618788,23.2052754,153.16,153.14,26.0]
[1748883619114,0.28432314,153.22,153.14,26.0]
[1748883619293,23.2052754,153.18,153.14,26.0]
[1748883619495,23.2052754,153.18,153.14,32.52977472]
[1748883619703,4.16574665,153.22,153.14,32.52977472]
[1748883620017,23.2052754,153.19,153.14,55.73505012]
[1748883620695,23.2052754,153.2,153.15,23.2052754]
[1748883621213,0.14216157,153.22,153.16,6.52911987]
[1748883621387,23.2052754,153.2,153.16,6.52911987]
[1748883621586,23.2052754,153.21,153.16,6.52911987]
[1748883621813,23.2052754,153.19,153.16,32.52911987]
[1748883622613,23.2052754,153.2,153.16,55.73439527]
[1748883622912,23.2052754,153.21,153.16,55.73439527]
[1748883624217,23.2052754,153.2,153.16,32.52911987]
[1748883624414,23.2052754,153.21,153.16,55.73439527]
[1748883625430,23.2052754,153.2,153.16,55.73439527]
[1748883625793,23.2052754,153.21,153.16,55.73439527]
[1748883626100,4.65232079,153.23,153.16,55.73439527]
[1748883626101,27.85759619,153.23,153.19,23.2052754]
[1748883626294,27.85759619,153.23,153.18,6.52792106]
[1748883626295,4.65232079,153.23,153.2,23.2052754]
[1748883626502,4.65232079,153.23,153.21,23.2052754]
[1748883626904,4.65232079,153.23,153.18,6.52792106]
[1748883627129,4.65232079,153.23,153.2,23.2052754]
[1748883627619,4.65232079,153.23,153.22,23.2052754]
[1748883628087,4.65232079,153.23,153.21,23.2052754]
[1748883628916,4.65232079,153.23,153.22,49.2052754]
[1748883629098,4.65232079,153.23,153.22,26.0]
[1748883629411,4.65232079,153.23,153.22,49.2052754]
[1748883629617,4.65232079,153.23,153.22,32.092]
[1748883629814,4.65232079,153.23,153.22,55.2972754]
[1748883630720,4.65232079,153.23,153.22,32.092]
[1748883631436,4.65232079,153.23,153.22,26.0]
[1748883633222,4.65232079,153.23,153.16,6.529068]
[1748883633223,27.85759619,153.23,153.16,6.529068]
[1748883633429,27.85759619,153.23,153.14,12.75145006]
[1748883633430,23.2052754,153.17,153.14,12.75145006]
[1748883633634,23.2052754,153.15,153.12,8.14229947]
[1748883633829,23.2052754,153.15,153.14,26.0]
[1748883634026,23.2052754,153.16,153.15,26.0]
[1748883634706,23.2052754,153.17,153.15,26.0]
[1748883635322,23.2052754,153.16,153.15,26.0]
[1748883636709,23.2052754,153.17,153.15,26.0]
[1748883637325,0.28432314,153.2,153.15,26.0]
[1748883637629,23.2052754,153.17,153.15,26.0]
[1748883638319,23.2052754,153.18,153.15,26.0]
[1748883639023,0.14216157,153.2,153.15,26.0]
[1748883639429,23.2052754,153.19,153.15,26.0]
[1748883639617,23.2052754,153.18,153.15,26.0]
[1748883640137,1.6209,153.21,153.15,26.0]
[1748883640440,23.2052754,153.18,153.15,26.0]
[1748883642330,23.2052754,153.18,153.14,6.52974907]
[1748883643436,23.2052754,153.17,153.15,26.0]
[1748883644118,23.2052754,153.16,153.15,26.0]
[1748883644739,23.2052754,153.19,153.15,26.0]
[1748883645311,23.2052754,153.21,153.17,23.2052754]
[1748883645629,23.2052754,153.22,153.17,23.2052754]
[1748883645819,23.2052754,153.22,153.18,23.2052754]
[1748883646132,23.2052754,153.22,153.17,23.2052754]
[1748883646729,23.2052754,153.21,153.17,23.2052754]
[1748883647127,23.2052754,153.21,153.16,29.73439527]
[1748883647339,23.2052754,153.2,153.16,6.52911987]
[1748883647538,23.2052754,153.2,153.16,29.73439527]
[1748883647743,23.2052754,153.17,153.09,6.53210529]
[1748883647915,23.2052754,153.12,153.07,8.066964]
[1748883648115,23.2052754,153.15,153.1,23.2052754]
[1748883648312,23.2052754,153.18,153.13,23.2052754]
[1748883648529,23.2052754,153.19,153.14,23.2052754]
[1748883648731,23.2052754,153.18,153.13,49.2052754]
[1748883649115,0.14216157,153.2,153.13,49.2052754]
[1748883649116,23.2052754,153.19,153.14,23.2052754]
[1748883649631,0.14216157,153.2,153.15,23.2052754]
[1748883649632,23.2052754,153.2,153.15,23.2052754]
[1748883650218,0.14216157,153.23,153.18,23.2052754]
[1748883650425,23.2052754,153.23,153.18,23.2052754]
[1748883650650,23.2052754,153.2,153.16,49.2052754]
[1748883650951,23.2052754,153.21,153.16,49.2052754]
[1748883651459,23.2052754,153.18,153.16,26.0]
[1748883651618,23.2052754,153.17,153.13,6.53031382]
[1748883651822,23.2052754,153.17,153.11,6.6577]
[1748883651823,23.2052754,153.17,153.12,23.2052754]
[1748883652140,23.2052754,153.17,153.14,26.0]
[1748883652326,23.2052754,153.16,153.14,26.0]
[1748883652928,23.2052754,153.17,153.14,26.0]
[1748883653332,0.42648471,153.21,153.12,26.0]
[1748883653333,46.4105508,153.15,153.12,26.0]
[1748883653533,23.2052754,153.13,153.04,6.53423941]
[1748883653832,23.2052754,153.1,153.08,26.0]
[1748883654957,23.2052754,153.09,153.04,25.18388827]
[1748883655150,23.2052754,153.08,153.04,48.38916367]
[1748883655476,23.2052754,153.08,153.07,26.0]
[1748883657138,23.2052754,153.11,153.07,26.0]
[1748883657729,23.2052754,153.1,153.07,26.0]
[1748883658163,0.28432314,153.15,153.07,49.2052754]
[1748883658368,23.2052754,153.13,153.08,55.7378074]
[1748883658658,23.2052754,153.15,153.11,49.2052754]
[1748883658835,23.2052754,153.16,153.11,49.2052754]
[1748883659032,23.2052754,153.2,153.11,26.0]
[1748883659033,23.2052754,153.15,153.11,26.0]
[1748883659243,23.2052754,153.2,153.11,26.0]
[1748883659244,23.2052754,153.14,153.11,26.0]
[1748883660277,0.14216157,153.19,153.11,26.0]
[1748883660278,11.78138041,153.21,153.12,29.73610089]
[1748883660436,23.2052754,153.18,153.14,23.2052754]
[1748883660857,23.2052754,153.18,153.13,23.2052754]
[1748883661265,23.2052754,153.18,153.14,23.2052754]
[1748883661445,23.2052754,153.19,153.15,23.2052754]
[1748883661641,6.3968,153.25,153.16,23.2052754]
[1748883661642,23.2052754,153.2,153.16,23.2052754]
[1748883661951,32.3968,153.25,153.16,23.2052754]